[Event "FIDE World Rapid Chess Championship 2021"]
[White "Heimann, Andreas"]
[Black "Sadhwani, Raunak"]
[WhiteFideId "24624632"]
[BlackFideId "35093487"]
[WhiteElo "2616"]
[BlackElo "2454"]
[Result "1-0"]
[Round "03"]
[TimeControl "900+10"]
[Date "2021.12.26"]
[WhiteClock "0:00:52"]
[BlackClock "0:00:16"]

1. e4 {[%clk 0:15:26]}  c5 {[%clk 0:15:26]} 2. Nf3 {[%clk 0:15:26]}  Nc6 {[%clk 0:15:26]} 3. Bb5 {[%clk 0:15:26]}  g6 {[%clk 0:15:26]} 4. O-O {[%clk 0:15:26]}  Bg7 {[%clk 0:15:26]} 5. Nc3 {[%clk 0:15:26]}  e5 {[%clk 0:15:23]} 6. a3 {[%clk 0:16:03]}  Nge7 {[%clk 0:15:23]} 7. b4 {[%clk 0:16:03]}  d6 {[%clk 0:15:23]} 8. bxc5 {[%clk 0:16:03]}  dxc5 {[%clk 0:15:23]} 9. d3 {[%clk 0:16:03]}  O-O {[%clk 0:15:23]} 10. Bc4 {[%clk 0:16:03]}  h6 {[%clk 0:15:23]} 11. Re1 {[%clk 0:16:03]}  Kh7 {[%clk 0:15:23]} 12. Nd5 {[%clk 0:16:03]}  Be6 {[%clk 0:15:23]} 13. Nxe7 {[%clk 0:16:03]}  Qxe7 {[%clk 0:15:23]} 14. Nd2 {[%clk 0:16:03]}  Rad8 {[%clk 0:15:28]} 15. a4 {[%clk 0:16:21]}  b6 {[%clk 0:13:12]} 16. Bb2 {[%clk 0:16:12]}  h5 {[%clk 0:13:12]} 17. Bxe6 {[%clk 0:16:12]}  Qxe6 {[%clk 0:13:12]} 18. Nc4 {[%clk 0:16:07]}  Bh6 {[%clk 0:12:50]} 19. Bc3 {[%clk 0:16:07]}  h4 {[%clk 0:12:50]} 20. h3 {[%clk 0:16:07]}  Bf4 {[%clk 0:12:50]} 21. Rb1 {[%clk 0:16:07]}  Rb8 {[%clk 0:12:36]} 22. Rb5 {[%clk 0:16:04]}  Qd7 {[%clk 0:11:45]} 23. Qg4 {[%clk 0:15:32]}  Qe7 {[%clk 0:11:45]} 24. Reb1 {[%clk 0:15:28]}  Rbc8 {[%clk 0:07:44]} 25. a5 {[%clk 0:14:26]}  bxa5 {[%clk 0:07:06]} 26. Rb7 {[%clk 0:12:30]}  Qf6 {[%clk 0:07:19]} 27. Bxa5 {[%clk 0:12:30]}  Rb8 {[%clk 0:07:19]} 28. Bc3 {[%clk 0:11:12]}  Rxb7 {[%clk 0:06:33]} 29. Rxb7 {[%clk 0:11:12]}  Kg8 {[%clk 0:06:14]} 30. Rc7 {[%clk 0:09:38]}  Rb8 {[%clk 0:05:36]} 31. Rc8+ {[%clk 0:06:45]}  Rxc8 {[%clk 0:05:36]} 32. Qxc8+ {[%clk 0:06:45]}  Kg7 {[%clk 0:04:22]} 33. Qd7 {[%clk 0:06:55]}  Qe6 {[%clk 0:03:46]} 34. Qc7 {[%clk 0:06:55]}  a6 {[%clk 0:03:51]} 35. Kf1 {[%clk 0:04:46]}  Kg8 {[%clk 0:03:51]} 36. Qb6 {[%clk 0:04:09]}  Nd4 {[%clk 0:01:42]} 37. Qxc5 {[%clk 0:03:41]}  Nxc2 {[%clk 0:01:42]} 38. Bxe5 {[%clk 0:03:33]}  Bxe5 {[%clk 0:01:40]} 39. Nxe5 {[%clk 0:03:33]}  Qa2 {[%clk 0:01:40]} 40. Kg1 {[%clk 0:03:33]}  Nb4 {[%clk 0:01:34]} 41. Nd7 {[%clk 0:02:09]}  Qe6 {[%clk 0:00:31]} 42. Qc8+ {[%clk 0:00:32]}  Kg7 {[%clk 0:00:27]} 43. Qc3+ {[%clk 0:00:32]}  f6 {[%clk 0:00:27]} 44. Nc5 {[%clk 0:00:32]}  Qb6 {[%clk 0:00:27]} 45. Qd4 {[%clk 0:00:32]}  Qb5 {[%clk 0:00:27]} 46. Qd6 {[%clk 0:00:32]}  Qe8 {[%clk 0:00:27]} 47. Ne6+ {[%clk 0:00:47]}  Kf7 {[%clk 0:00:24]} 48. Nf4 {[%clk 0:00:47]}  Qe7 {[%clk 0:00:13]} 49. Qd4 {[%clk 0:00:14]}  a5 {[%clk 0:00:13]} 50. Qc4+ {[%clk 0:00:14]}  Kg7 {[%clk 0:00:13]} 51. Ne6+ {[%clk 0:00:52]}  Kh7 {[%clk 0:00:16]} 52. Nc5 {[%clk 0:00:52]}  Qc7 {[%clk 0:00:16]} 53. d4 {[%clk 0:00:52]}  Nc6 {[%clk 0:00:16]} 54. Qd5 {[%clk 0:00:52]}  Qf4 {[%clk 0:00:16]} 55. Qf7+ {[%clk 0:00:52]}  Kh6 {[%clk 0:00:16]} 56. Ne6 {[%clk 0:00:52]}  Qc1+ {[%clk 0:00:16]} 57. Kh2 {[%clk 0:00:52]}  a4 {[%clk 0:00:16]} 58. f4 {[%clk 0:00:52]} 1-0


[Site "http://www.Chess.com"]

[Event "FIDE World Rapid Chess Championship 2021"]
[White "Gumularz, Szymon"]
[Black "Timofeev, Artyom"]
[WhiteFideId "1188062"]
[BlackFideId "4140419"]
[WhiteElo "2452"]
[BlackElo "2591"]
[Result "1-0"]
[Round "03"]
[TimeControl "900+10"]
[Date "2021.12.26"]
[WhiteClock "0:00:00"]
[BlackClock "0:00:13"]

1. Nf3 {[%clk 0:15:18]}  Nf6 {[%clk 0:15:00]} 2. c4 {[%clk 0:15:18]}  e6 {[%clk 0:15:00]} 3. Nc3 {[%clk 0:15:18]}  d5 {[%clk 0:15:00]} 4. d4 {[%clk 0:15:18]}  Be7 {[%clk 0:15:00]} 5. Qc2 {[%clk 0:16:06]}  O-O {[%clk 0:15:29]} 6. cxd5 {[%clk 0:16:06]}  exd5 {[%clk 0:15:29]} 7. Bg5 {[%clk 0:16:06]}  c6 {[%clk 0:15:29]} 8. e3 {[%clk 0:16:06]}  Nbd7 {[%clk 0:15:29]} 9. Bd3 {[%clk 0:16:06]}  Re8 {[%clk 0:15:29]} 10. O-O {[%clk 0:16:06]}  Nf8 {[%clk 0:15:29]} 11. h3 {[%clk 0:16:06]}  Ne4 {[%clk 0:15:29]} 12. Bf4 {[%clk 0:16:06]}  Nxc3 {[%clk 0:14:50]} 13. bxc3 {[%clk 0:16:24]}  Bd6 {[%clk 0:14:50]} 14. Bxd6 {[%clk 0:16:24]}  Qxd6 {[%clk 0:14:50]} 15. c4 {[%clk 0:16:24]}  dxc4 {[%clk 0:14:38]} 16. Bxc4 {[%clk 0:16:06]}  Be6 {[%clk 0:14:38]} 17. Rab1 {[%clk 0:16:06]}  b6 {[%clk 0:14:38]} 18. a4 {[%clk 0:16:06]}  c5 {[%clk 0:14:38]} 19. d5 {[%clk 0:16:06]}  Bd7 {[%clk 0:12:57]} 20. Rfd1 {[%clk 0:15:02]}  Ng6 {[%clk 0:13:37]} 21. Bb5 {[%clk 0:13:36]}  Bxb5 {[%clk 0:13:19]} 22. axb5 {[%clk 0:13:21]}  Rad8 {[%clk 0:13:19]} 23. Ra1 {[%clk 0:13:21]}  Rd7 {[%clk 0:12:37]} 24. Ra4 {[%clk 0:12:50]}  h6 {[%clk 0:12:37]} 25. Qa2 {[%clk 0:12:25]}  Ree7 {[%clk 0:12:30]} 26. e4 {[%clk 0:12:07]}  Kh7 {[%clk 0:09:01]} 27. g3 {[%clk 0:12:33]}  f5 {[%clk 0:07:47]} 28. exf5 {[%clk 0:11:57]}  Ne5 {[%clk 0:07:47]} 29. Rf4 {[%clk 0:11:57]}  Nxf3+ {[%clk 0:04:35]} 30. Rxf3 {[%clk 0:11:30]}  Re5 {[%clk 0:03:27]} 31. Qc2 {[%clk 0:11:39]}  Rxd5 {[%clk 0:03:27]} 32. f6+ {[%clk 0:11:39]}  Kg8 {[%clk 0:03:28]} 33. Qc4 {[%clk 0:06:01]}  Kf8 {[%clk 0:02:34]} 34. fxg7+ {[%clk 0:03:38]}  Kxg7 {[%clk 0:00:13]} 35. Rxd5 {[%clk 0:00:00]}  Qxd5 {[%clk 0:00:13]} 36. Qf4 {[%clk 0:00:00]}  c4 {[%clk 0:00:13]} 37. Qf8+ {[%clk 0:00:00]}  Kh7 {[%clk 0:00:13]} 38. Rf6 {[%clk 0:00:00]}  Rg7 {[%clk 0:00:13]} 39. Qe8 {[%clk 0:00:00]}  Qd4 {[%clk 0:00:13]} 40. Rf3 {[%clk 0:00:00]}  c3 {[%clk 0:00:13]} 41. Qc6 {[%clk 0:00:00]}  Qd1+ {[%clk 0:00:13]} 42. Kg2 {[%clk 0:00:00]}  c2 {[%clk 0:00:13]} 43. Rc3 {[%clk 0:00:00]}  Rxg3+ {[%clk 0:00:13]} 44. Kxg3 {[%clk 0:00:00]}  Qg1+ {[%clk 0:00:13]} 45. Kf3 {[%clk 0:00:00]}  Qh1+ {[%clk 0:00:13]} 46. Kf4 {[%clk 0:00:00]}  Qc1+ {[%clk 0:00:13]} 47. Kf5 {[%clk 0:00:00]}  Qg5+ {[%clk 0:00:13]} 48. Ke6 {[%clk 0:00:00]}  Qg6+ {[%clk 0:00:13]} 49. Kd7 {[%clk 0:00:00]}  Qf7+ {[%clk 0:00:13]} 50. Kc8 {[%clk 0:00:00]} 1-0


[Site "http://www.Chess.com"]

[Event "FIDE World Rapid Chess Championship 2021"]
[White "Krasenkow, Michal"]
[Black "Dvirnyy, Danyyil"]
[WhiteFideId "1113100"]
[BlackFideId "817570"]
[WhiteElo "2430"]
[BlackElo "2550"]
[Result "1-0"]
[Round "03"]
[TimeControl "900+10"]
[Date "2021.12.26"]
[WhiteClock "0:00:42"]
[BlackClock "0:00:47"]

1. d4 {[%clk 0:15:17]}  Nf6 {[%clk 0:15:00]} 2. c4 {[%clk 0:15:17]}  e6 {[%clk 0:15:00]} 3. Nc3 {[%clk 0:15:17]}  Bb4 {[%clk 0:15:00]} 4. e3 {[%clk 0:15:17]}  O-O {[%clk 0:15:00]} 5. Bd2 {[%clk 0:15:17]}  b6 {[%clk 0:15:00]} 6. Nf3 {[%clk 0:15:17]}  d5 {[%clk 0:15:00]} 7. cxd5 {[%clk 0:15:17]}  exd5 {[%clk 0:15:00]} 8. Bd3 {[%clk 0:15:17]}  Ba6 {[%clk 0:15:00]} 9. Bxa6 {[%clk 0:15:17]}  Nxa6 {[%clk 0:15:00]} 10. O-O {[%clk 0:15:17]}  Qc8 {[%clk 0:15:00]} 11. Rc1 {[%clk 0:15:17]}  Qb7 {[%clk 0:15:00]} 12. Nb5 {[%clk 0:15:17]}  Be7 {[%clk 0:13:28]} 13. Ne5 {[%clk 0:12:12]}  c5 {[%clk 0:13:28]} 14. Qf3 {[%clk 0:12:17]}  Rac8 {[%clk 0:12:54]} 15. Rfd1 {[%clk 0:09:55]}  Ne4 {[%clk 0:12:54]} 16. Nc3 {[%clk 0:09:05]}  cxd4 {[%clk 0:11:18]} 17. exd4 {[%clk 0:09:05]}  Nxd2 {[%clk 0:11:18]} 18. Qxd5 {[%clk 0:07:01]}  Rc7 {[%clk 0:11:07]} 19. f4 {[%clk 0:04:33]}  Qc8 {[%clk 0:08:58]} 20. Rxd2 {[%clk 0:03:38]}  Nb4 {[%clk 0:05:13]} 21. Qb3 {[%clk 0:03:45]}  Qe6 {[%clk 0:04:30]} 22. d5 {[%clk 0:01:14]}  Bc5+ {[%clk 0:03:14]} 23. Kh1 {[%clk 0:01:14]}  Qf5 {[%clk 0:03:14]} 24. Rf1 {[%clk 0:01:14]}  Re7 {[%clk 0:01:52]} 25. Rdd1 {[%clk 0:01:32]}  Na6 {[%clk 0:01:52]} 26. Qc4 {[%clk 0:01:16]}  Nb8 {[%clk 0:00:32]} 27. d6 {[%clk 0:01:16]}  Re6 {[%clk 0:00:32]} 28. Nd5 {[%clk 0:01:16]}  Qh5 {[%clk 0:00:32]} 29. Ne7+ {[%clk 0:01:16]}  Kh8 {[%clk 0:00:32]} 30. g4 {[%clk 0:01:16]}  Qh6 {[%clk 0:00:32]} 31. Nf5 {[%clk 0:00:52]}  Qf6 {[%clk 0:00:47]} 32. b4 {[%clk 0:00:42]}  Bxd6 {[%clk 0:00:47]} 33. Rxd6 {[%clk 0:00:42]}  Rxd6 {[%clk 0:00:47]} 34. Nxd6 {[%clk 0:00:42]} 1-0


[Site "http://www.Chess.com"]

[Event "FIDE World Rapid Chess Championship 2021"]
[White "Mikhalevski, Victor"]
[Black "Zvjaginsev, Vadim"]
[WhiteFideId "2801914"]
[BlackFideId "4113403"]
[WhiteElo "2366"]
[BlackElo "2539"]
[Result "0-1"]
[Round "03"]
[TimeControl "900+10"]
[Date "2021.12.26"]
[WhiteClock "0:12:13"]
[BlackClock "0:15:10"]

1. e4 {[%clk 0:15:00]}  c5 {[%clk 0:15:25]} 2. Nf3 {[%clk 0:15:00]}  d6 {[%clk 0:15:25]} 3. d4 {[%clk 0:15:00]}  cxd4 {[%clk 0:15:25]} 4. Nxd4 {[%clk 0:15:00]}  Nf6 {[%clk 0:15:25]} 5. Nc3 {[%clk 0:15:00]}  a6 {[%clk 0:15:25]} 6. Be3 {[%clk 0:14:48]}  e5 {[%clk 0:15:10]} 7. Nb3 {[%clk 0:14:48]}  Be6 {[%clk 0:15:10]} 8. h3 {[%clk 0:14:48]}  Be7 {[%clk 0:15:10]} 9. Qf3 {[%clk 0:14:48]}  Nbd7 {[%clk 0:15:10]} 10. O-O-O {[%clk 0:14:48]}  Rc8 {[%clk 0:15:10]} 11. Nd5 {[%clk 0:14:48]}  O-O {[%clk 0:15:10]} 12. g4 {[%clk 0:14:48]}  Bxd5 {[%clk 0:14:38]} 13. exd5 {[%clk 0:14:46]}  Qc7 {[%clk 0:14:38]} 14. c3 {[%clk 0:12:46]}  Nb6 {[%clk 0:15:10]} 15. g5 {[%clk 0:14:06]}  e4 {[%clk 0:15:09]} 16. Bxb6 {[%clk 0:12:25]}  Qxb6 {[%clk 0:15:17]} 17. Qe2 {[%clk 0:12:25]}  Nd7 {[%clk 0:15:17]} 18. h4 {[%clk 0:12:25]}  Ne5 {[%clk 0:14:47]} 19. Bh3 {[%clk 0:12:06]}  Nd3+ {[%clk 0:13:07]} 20. Rxd3 {[%clk 0:09:25]}  exd3 {[%clk 0:13:07]} 21. Qxd3 {[%clk 0:09:25]}  Rce8 {[%clk 0:13:07]} 22. Nd4 {[%clk 0:09:25]}  Qa5 {[%clk 0:13:07]} 23. Nf5 {[%clk 0:08:46]}  Qc5 {[%clk 0:13:09]} 24. Ne3 {[%clk 0:07:22]}  Bd8 {[%clk 0:11:53]} 25. Bf5 {[%clk 0:07:22]}  g6 {[%clk 0:11:53]} 26. Be4 {[%clk 0:07:22]}  f5 {[%clk 0:11:53]} 27. gxf6 {[%clk 0:07:22]}  Bxf6 {[%clk 0:11:18]} 28. h5 {[%clk 0:06:19]}  Bg5 {[%clk 0:10:56]} 29. Kb1 {[%clk 0:04:58]}  Rxf2 {[%clk 0:10:46]} 30. Nc2 {[%clk 0:02:23]}  Rd2 {[%clk 0:10:37]} 31. Qf3 {[%clk 0:01:29]}  Qf2 {[%clk 0:09:13]} 32. hxg6 {[%clk 0:01:20]}  h6 {[%clk 0:08:05]} 33. Qg4 {[%clk 0:01:31]}  Qe2 {[%clk 0:08:05]} 34. Qxe2 {[%clk 0:01:31]}  Rxe2 {[%clk 0:08:05]} 35. Bf5 {[%clk 0:01:31]}  R8e5 {[%clk 0:08:05]} 36. Nd4 {[%clk 0:01:26]}  Re1+ {[%clk 0:07:16]} 37. Rxe1 {[%clk 0:01:26]}  Rxe1+ {[%clk 0:07:16]} 38. Kc2 {[%clk 0:01:26]}  Bf6 {[%clk 0:07:16]} 39. Be6+ {[%clk 0:01:05]}  Kf8 {[%clk 0:06:52]} 40. Nf5 {[%clk 0:01:05]}  h5 {[%clk 0:15:10]} 41. Nxd6 {[%clk 0:12:13]}  h4 {[%clk 0:15:10]} 42. Bf5 {[%clk 0:12:13]}  Re5 {[%clk 0:15:10]} 43. Bh3 {[%clk 0:12:13]}  Rxd5 {[%clk 0:15:10]} 44. Nxb7 {[%clk 0:12:13]}  Rg5 {[%clk 0:15:10]} 45. Nd6 {[%clk 0:12:13]}  Rg3 {[%clk 0:15:10]} 46. Bc8 {[%clk 0:12:13]}  h3 {[%clk 0:15:10]} 47. Bxa6 {[%clk 0:12:13]}  Rg2+ {[%clk 0:15:10]} 48. Kb3 {[%clk 0:12:13]}  h2 {[%clk 0:15:10]} 0-1


[Site "http://www.Chess.com"]

[Event "FIDE World Rapid Chess Championship 2021"]
[White "Nasuta, Grzegorz"]
[Black "Gabuzyan, Hovhannes"]
[WhiteFideId "1141686"]
[BlackFideId "13303732"]
[WhiteElo "2345"]
[BlackElo "2535"]
[Result "1-0"]
[Round "03"]
[TimeControl "900+10"]
[Date "2021.12.26"]
[WhiteClock "0:01:09"]
[BlackClock "0:00:00"]

1. e4 {[%clk 0:15:00]}  e5 {[%clk 0:15:28]} 2. Nf3 {[%clk 0:15:33]}  Nc6 {[%clk 0:15:28]} 3. Nc3 {[%clk 0:15:33]}  Nf6 {[%clk 0:14:50]} 4. a3 {[%clk 0:15:42]}  Bd6 {[%clk 0:14:50]} 5. Bc4 {[%clk 0:15:42]}  O-O {[%clk 0:14:50]} 6. d3 {[%clk 0:15:42]}  a6 {[%clk 0:14:50]} 7. O-O {[%clk 0:15:42]}  b5 {[%clk 0:14:47]} 8. Ba2 {[%clk 0:14:46]}  Bb7 {[%clk 0:14:49]} 9. Ne2 {[%clk 0:14:39]}  Be7 {[%clk 0:14:20]} 10. Ng3 {[%clk 0:13:35]}  d6 {[%clk 0:10:53]} 11. h3 {[%clk 0:13:32]}  Nd7 {[%clk 0:10:54]} 12. Nf5 {[%clk 0:13:20]}  Bf6 {[%clk 0:10:54]} 13. Nh2 {[%clk 0:13:01]}  Ne7 {[%clk 0:09:51]} 14. Ne3 {[%clk 0:12:30]}  Ng6 {[%clk 0:09:35]} 15. g3 {[%clk 0:12:30]}  Nc5 {[%clk 0:09:43]} 16. h4 {[%clk 0:11:01]}  Kh8 {[%clk 0:08:56]} 17. Nhg4 {[%clk 0:10:41]}  Ne7 {[%clk 0:07:43]} 18. Nxf6 {[%clk 0:08:50]}  gxf6 {[%clk 0:05:48]} 19. Qf3 {[%clk 0:08:50]}  Ng8 {[%clk 0:05:57]} 20. Nf5 {[%clk 0:06:43]}  Bc8 {[%clk 0:05:02]} 21. Be3 {[%clk 0:05:11]}  Bxf5 {[%clk 0:05:08]} 22. Qxf5 {[%clk 0:03:20]}  Qd7 {[%clk 0:05:08]} 23. Qh5 {[%clk 0:03:20]}  Ne6 {[%clk 0:05:08]} 24. f4 {[%clk 0:03:29]}  c6 {[%clk 0:03:29]} 25. f5 {[%clk 0:02:47]}  Ng7 {[%clk 0:02:38]} 26. Qf3 {[%clk 0:02:20]}  Rfd8 {[%clk 0:02:38]} 27. g4 {[%clk 0:02:20]}  d5 {[%clk 0:02:38]} 28. g5 {[%clk 0:02:20]}  Qd6 {[%clk 0:02:38]} 29. Kh1 {[%clk 0:02:20]}  Rd7 {[%clk 0:01:41]} 30. Rg1 {[%clk 0:01:09]}  Rad8 {[%clk 0:00:00]} 31. Rg2 {[%clk 0:01:09]}  fxg5 {[%clk 0:00:00]} 32. hxg5 {[%clk 0:01:09]}  dxe4 {[%clk 0:00:00]} 33. dxe4 {[%clk 0:01:09]}  Qf8 {[%clk 0:00:00]} 34. Rh2 {[%clk 0:01:09]}  h6 {[%clk 0:00:00]} 35. Rg1 {[%clk 0:01:09]}  Ne8 {[%clk 0:00:00]} 36. gxh6 {[%clk 0:01:09]}  Ngf6 {[%clk 0:00:00]} 37. h7 {[%clk 0:01:09]}  Rd6 {[%clk 0:00:00]} 38. Bh6 {[%clk 0:01:09]}  Qe7 {[%clk 0:00:00]} 39. Qg2 {[%clk 0:01:09]}  Rd1 {[%clk 0:00:00]} 40. Bg7+ {[%clk 0:01:09]} 1-0


[Site "http://www.Chess.com"]

[Event "FIDE World Rapid Chess Championship 2021"]
[White "Kuzmicz, Krystian"]
[Black "Durarbayli, Vasif"]
[WhiteFideId "1119125"]
[BlackFideId "13402935"]
[WhiteElo "2314"]
[BlackElo "2532"]
[Result "0-1"]
[Round "03"]
[TimeControl "900+10"]
[Date "2021.12.26"]
[WhiteClock "0:00:20"]
[BlackClock "0:00:16"]

1. Nf3 {[%clk 0:15:19]}  d5 {[%clk 0:15:00]} 2. c4 {[%clk 0:15:19]}  d4 {[%clk 0:15:00]} 3. e3 {[%clk 0:15:28]}  Nc6 {[%clk 0:15:21]} 4. exd4 {[%clk 0:15:28]}  Nxd4 {[%clk 0:15:21]} 5. Nxd4 {[%clk 0:15:28]}  Qxd4 {[%clk 0:15:21]} 6. Be2 {[%clk 0:15:28]}  Nh6 {[%clk 0:15:36]} 7. Nc3 {[%clk 0:14:13]}  c6 {[%clk 0:14:56]} 8. O-O {[%clk 0:13:06]}  Nf5 {[%clk 0:14:24]} 9. d3 {[%clk 0:09:30]}  g6 {[%clk 0:14:24]} 10. g4 {[%clk 0:09:30]}  Ng7 {[%clk 0:14:23]} 11. Be3 {[%clk 0:09:28]}  Qd7 {[%clk 0:14:23]} 12. d4 {[%clk 0:09:28]}  h5 {[%clk 0:14:23]} 13. h3 {[%clk 0:09:35]}  hxg4 {[%clk 0:11:37]} 14. hxg4 {[%clk 0:09:35]}  f5 {[%clk 0:11:33]} 15. d5 {[%clk 0:08:58]}  fxg4 {[%clk 0:08:23]} 16. Qd4 {[%clk 0:06:13]}  g3 {[%clk 0:07:53]} 17. fxg3 {[%clk 0:04:27]}  Qh3 {[%clk 0:07:53]} 18. Kf2 {[%clk 0:04:09]}  Nf5 {[%clk 0:06:44]} 19. Qg4 {[%clk 0:03:45]}  Qxg4 {[%clk 0:06:20]} 20. Bxg4 {[%clk 0:02:49]}  Rh2+ {[%clk 0:00:55]} 21. Kg1 {[%clk 0:02:58]}  Rg2+ {[%clk 0:00:34]} 22. Kxg2 {[%clk 0:01:15]}  Nxe3+ {[%clk 0:00:34]} 23. Kf3 {[%clk 0:01:15]}  Nxg4 {[%clk 0:00:34]} 24. Rh1 {[%clk 0:01:14]}  Bg7 {[%clk 0:00:37]} 25. Rae1 {[%clk 0:01:14]}  Kf8 {[%clk 0:00:37]} 26. Kf4 {[%clk 0:01:14]}  Bf5 {[%clk 0:00:37]} 27. Kg5 {[%clk 0:01:14]}  Nf2 {[%clk 0:00:37]} 28. Rh4 {[%clk 0:00:20]}  Bf6+ {[%clk 0:00:16]} 29. Kh6 {[%clk 0:00:20]}  Kf7 {[%clk 0:00:16]} 0-1


[Site "http://www.Chess.com"]

[Event "FIDE World Rapid Chess Championship 2021"]
[White "Lubczynski, Rafal"]
[Black "Christiansen, Johan-Sebastian"]
[WhiteFideId "1126091"]
[BlackFideId "1512668"]
[WhiteElo "2289"]
[BlackElo "2522"]
[Result "0-1"]
[Round "03"]
[TimeControl "900+10"]
[Date "2021.12.26"]
[WhiteClock "0:00:03"]
[BlackClock "0:03:39"]

1. d4 {[%clk 0:15:00]}  Nf6 {[%clk 0:15:19]} 2. c4 {[%clk 0:15:19]}  e6 {[%clk 0:15:19]} 3. Nc3 {[%clk 0:15:19]}  Bb4 {[%clk 0:15:19]} 4. Nf3 {[%clk 0:15:19]}  b6 {[%clk 0:15:23]} 5. e3 {[%clk 0:15:58]}  Bb7 {[%clk 0:15:23]} 6. Bd3 {[%clk 0:15:58]}  O-O {[%clk 0:15:23]} 7. O-O {[%clk 0:15:58]}  Bxc3 {[%clk 0:15:23]} 8. bxc3 {[%clk 0:15:58]}  d6 {[%clk 0:15:23]} 9. Ne1 {[%clk 0:16:06]}  e5 {[%clk 0:14:30]} 10. f3 {[%clk 0:12:58]}  e4 {[%clk 0:13:43]} 11. Be2 {[%clk 0:12:16]}  Nc6 {[%clk 0:12:59]} 12. f4 {[%clk 0:10:53]}  Na5 {[%clk 0:12:59]} 13. Nc2 {[%clk 0:10:53]}  Ba6 {[%clk 0:12:18]} 14. Na3 {[%clk 0:10:10]}  Qd7 {[%clk 0:12:18]} 15. Bd2 {[%clk 0:10:19]}  Qc6 {[%clk 0:11:52]} 16. f5 {[%clk 0:09:22]}  Nxc4 {[%clk 0:11:40]} 17. Nxc4 {[%clk 0:05:42]}  Bxc4 {[%clk 0:11:06]} 18. g4 {[%clk 0:05:42]}  Nd5 {[%clk 0:11:06]} 19. g5 {[%clk 0:05:42]}  f6 {[%clk 0:10:59]} 20. h4 {[%clk 0:04:29]}  Rae8 {[%clk 0:10:21]} 21. Rf2 {[%clk 0:03:28]}  Re7 {[%clk 0:10:21]} 22. Kh2 {[%clk 0:02:26]}  Bd3 {[%clk 0:08:02]} 23. Bxd3 {[%clk 0:02:26]}  exd3 {[%clk 0:08:02]} 24. Qf3 {[%clk 0:02:26]}  fxg5 {[%clk 0:07:05]} 25. hxg5 {[%clk 0:01:43]}  Ref7 {[%clk 0:03:39]} 26. e4 {[%clk 0:01:43]}  Ne7 {[%clk 0:03:48]} 27. d5 {[%clk 0:01:43]}  Qc4 {[%clk 0:03:48]} 28. Rh1 {[%clk 0:01:43]}  Nxf5 {[%clk 0:03:48]} 29. g6 {[%clk 0:00:03]}  hxg6 {[%clk 0:03:39]} 30. Kg1 {[%clk 0:00:03]}  Nh6 {[%clk 0:03:39]} 0-1


[Site "http://www.Chess.com"]

[Event "FIDE World Rapid Chess Championship 2021"]
[White "Moroni, Luca Jr"]
[Black "Martirosyan, Haik M."]
[WhiteFideId "865834"]
[BlackFideId "13306553"]
[WhiteElo "2519"]
[BlackElo "2377"]
[Result "0-1"]
[Round "03"]
[TimeControl "900+10"]
[Date "2021.12.26"]
[WhiteClock "0:00:21"]
[BlackClock "0:00:17"]

1. e4 {[%clk 0:15:00]}  e5 {[%clk 0:15:19]} 2. Nf3 {[%clk 0:15:19]}  Nf6 {[%clk 0:15:19]} 3. Nxe5 {[%clk 0:15:45]}  d6 {[%clk 0:15:56]} 4. Nf3 {[%clk 0:15:45]}  Nxe4 {[%clk 0:15:56]} 5. d4 {[%clk 0:15:45]}  d5 {[%clk 0:15:56]} 6. Bd3 {[%clk 0:15:45]}  Bd6 {[%clk 0:15:56]} 7. O-O {[%clk 0:15:45]}  O-O {[%clk 0:15:56]} 8. c4 {[%clk 0:15:45]}  c6 {[%clk 0:15:56]} 9. Nc3 {[%clk 0:15:45]}  Nxc3 {[%clk 0:14:31]} 10. bxc3 {[%clk 0:16:00]}  dxc4 {[%clk 0:14:31]} 11. Bxc4 {[%clk 0:16:00]}  Bf5 {[%clk 0:14:31]} 12. Bd3 {[%clk 0:16:00]}  Bxd3 {[%clk 0:14:31]} 13. Qxd3 {[%clk 0:16:00]}  Nd7 {[%clk 0:14:31]} 14. Rb1 {[%clk 0:16:25]}  b6 {[%clk 0:14:17]} 15. c4 {[%clk 0:16:25]}  Re8 {[%clk 0:14:17]} 16. Bg5 {[%clk 0:16:25]}  Qc7 {[%clk 0:14:17]} 17. Rfe1 {[%clk 0:16:20]}  Nf8 {[%clk 0:14:13]} 18. g3 {[%clk 0:15:49]}  Ne6 {[%clk 0:14:13]} 19. Be3 {[%clk 0:15:49]}  Rad8 {[%clk 0:14:13]} 20. Qc2 {[%clk 0:15:09]}  Bf8 {[%clk 0:14:23]} 21. Rbd1 {[%clk 0:15:09]}  g6 {[%clk 0:14:23]} 22. Qc1 {[%clk 0:14:40]}  Bg7 {[%clk 0:14:24]} 23. Bh6 {[%clk 0:13:21]}  Bh8 {[%clk 0:14:24]} 24. Re4 {[%clk 0:13:21]}  Re7 {[%clk 0:13:44]} 25. Qe3 {[%clk 0:12:44]}  Bf6 {[%clk 0:12:40]} 26. Ne5 {[%clk 0:11:36]}  Nc5 {[%clk 0:10:07]} 27. Re1 {[%clk 0:09:59]}  Nxe4 {[%clk 0:09:25]} 28. Qxe4 {[%clk 0:09:59]}  Bg7 {[%clk 0:09:33]} 29. Bxg7 {[%clk 0:08:00]}  Kxg7 {[%clk 0:09:22]} 30. Qh4 {[%clk 0:08:00]}  c5 {[%clk 0:09:30]} 31. Re4 {[%clk 0:05:37]}  h5 {[%clk 0:06:58]} 32. Rf4 {[%clk 0:00:21]}  Rd6 {[%clk 0:00:17]} 33. g4 {[%clk 0:00:21]}  cxd4 {[%clk 0:00:17]} 34. Nf3 {[%clk 0:00:21]}  d3 {[%clk 0:00:17]} 35. gxh5 {[%clk 0:00:21]}  d2 {[%clk 0:00:17]} 36. Nxd2 {[%clk 0:00:21]}  Rxd2 {[%clk 0:00:17]} 37. Qf6+ {[%clk 0:00:21]}  Kh6 {[%clk 0:00:17]} 38. Qh8+ {[%clk 0:00:21]}  Kg5 {[%clk 0:00:17]} 39. Qf6+ {[%clk 0:00:21]}  Kh6 {[%clk 0:00:17]} 40. Qh8+ {[%clk 0:00:21]}  Kg5 {[%clk 0:00:17]} 41. Qf6+ {[%clk 0:00:21]}  Kh6 {[%clk 0:00:17]} 42. Qh8+ {[%clk 0:00:21]} 0-1


[Site "http://www.Chess.com"]

[Event "FIDE World Rapid Chess Championship 2021"]
[White "Sanal, Vahap"]
[Black "Sankalp, Gupta"]
[WhiteFideId "6300545"]
[BlackFideId "5097010"]
[WhiteElo "2509"]
[BlackElo "2266"]
[Result "0-1"]
[Round "03"]
[TimeControl "900+10"]
[Date "2021.12.26"]
[WhiteClock "0:02:41"]
[BlackClock "0:08:02"]

1. e4 {[%clk 0:15:16]}  c5 {[%clk 0:15:19]} 2. Nf3 {[%clk 0:15:16]}  Nc6 {[%clk 0:15:19]} 3. c3 {[%clk 0:15:16]}  d5 {[%clk 0:15:28]} 4. exd5 {[%clk 0:15:44]}  Qxd5 {[%clk 0:15:28]} 5. d4 {[%clk 0:15:44]}  Bf5 {[%clk 0:15:28]} 6. Be3 {[%clk 0:15:44]}  cxd4 {[%clk 0:15:28]} 7. cxd4 {[%clk 0:15:44]}  Bxb1 {[%clk 0:15:28]} 8. Qxb1 {[%clk 0:14:12]}  e6 {[%clk 0:15:33]} 9. a3 {[%clk 0:13:41]}  Nf6 {[%clk 0:15:35]} 10. Be2 {[%clk 0:13:41]}  Bd6 {[%clk 0:15:35]} 11. O-O {[%clk 0:13:41]}  O-O {[%clk 0:15:35]} 12. Rd1 {[%clk 0:13:10]}  Rfd8 {[%clk 0:15:45]} 13. Qd3 {[%clk 0:11:48]}  Bc7 {[%clk 0:15:45]} 14. Rac1 {[%clk 0:11:48]}  Bb6 {[%clk 0:15:45]} 15. Qb1 {[%clk 0:11:12]}  h6 {[%clk 0:15:20]} 16. h3 {[%clk 0:10:31]}  Rd7 {[%clk 0:14:43]} 17. Bc4 {[%clk 0:09:59]}  Qh5 {[%clk 0:14:33]} 18. Be2 {[%clk 0:08:25]}  Rad8 {[%clk 0:14:27]} 19. Kf1 {[%clk 0:08:27]}  Qd5 {[%clk 0:12:44]} 20. Bc4 {[%clk 0:08:27]}  Qd6 {[%clk 0:12:44]} 21. Bb5 {[%clk 0:08:27]}  Rc7 {[%clk 0:12:44]} 22. Kg1 {[%clk 0:07:26]}  Rcc8 {[%clk 0:12:06]} 23. Bc4 {[%clk 0:05:45]}  Qe7 {[%clk 0:10:03]} 24. Qa2 {[%clk 0:04:53]}  Nd5 {[%clk 0:08:48]} 25. Re1 {[%clk 0:02:40]}  Qf6 {[%clk 0:08:47]} 26. Rcd1 {[%clk 0:02:40]}  Nf4 {[%clk 0:08:33]} 27. Bxf4 {[%clk 0:02:41]}  Qxf4 {[%clk 0:08:33]} 28. d5 {[%clk 0:02:41]}  Nd4 {[%clk 0:08:33]} 29. Rxd4 {[%clk 0:02:41]}  Bxd4 {[%clk 0:08:33]} 30. dxe6 {[%clk 0:02:41]}  Rxc4 {[%clk 0:08:33]} 31. Nxd4 {[%clk 0:02:41]}  Rcxd4 {[%clk 0:08:02]} 0-1


[Site "http://www.Chess.com"]